[Event "Polish University-ch Teams 2024"]
[Site "Lublin"]
[Date "2024.02.24"]
[Round "1.10"]
[White "Kaminski, Maciej"]
[Black "Zozgornik, Dawid"]
[Result "1-0"]
[ECO "B33"]
[WhiteElo "1869"]
[BlackElo "1194"]
[Annotator "NA RC"]
[PlyCount "69"]
[EventDate "2024.02.22"]
[EventType "team-tourn"]
[EventCountry "POL"]
[SourceTitle "playchess.com"]
[Source "ChessBase"]
[SourceQuality "1"]
[TimeControl "900+5"]

1. e4 {[%emt 0:00:04]} c5 {[%emt 0:00:04]} 2. Nf3 {[%emt 0:00:04]} Nc6 {[%emt 0:00:01]} 3. d4 {[%emt 0:00:09]} cxd4 {[%emt 0:00:03]} 4. Nxd4 {[%emt 0:00:03]} e5 {[%emt 0:00:02]} 5. Nb5 {[%emt 0:00:03]} d6 {[%emt 0:00:01]} 6. N1c3 {[%emt 0:00:29]} a6 {[%emt 0:00:10]} 7. Na3 {[%emt 0:00:03]} Be7 {[%emt 0:00:05]} 8. Nc4 {[%emt 0:00:26]} Nf6 {[%emt 0:00:29]} 9. Bg5 {[%emt 0:01:09]} Be6 {[%emt 0:00:39]} 10. Bxf6 {[%emt 0:02:09]} Bxf6 {[%emt 0:00:19]} 11. Nxd6+ {[%emt 0:00:07]} Kf8 {[%emt 0:02:34]} 12. Bc4 {[%emt 0:01:19]} b5 {[%emt 0:04:18]} 13. Bxe6 {[%emt 0:03:36]} fxe6 {[%emt 0:00:07]} 14. Nb7 {[%emt 0:01:57]} Qb6 {[%emt 0:01:37]} 15. Qd7 {[%emt 0:00:57]} Nd4 {[%emt 0:01:28]} 16. O-O {[%emt 0:01:56]} Be7 {[%emt 0:00:31]} 17. a4 {[%emt 0:00:43]} Rb8 {[%emt 0:00:24]} 18. axb5 {[%emt 0:00:53]} Qxb7 {[%emt 0:00:17]} 19. Qxb7 {[%emt 0:00:08]} Rxb7 {[%emt 0:00:01]} 20. bxa6 {[%emt 0:00:02]} Ra7 {[%emt 0:01:03]} 21. f4 {[%emt 0:00:01]} Bc5 {[%emt 0:00:38]} 22. Kh1 {[%emt 0:00:02]} Ke7 {[%emt 0:00:15]} 23. Na4 {[%emt 0:00:19]} Bd6 {[%emt 0:00:30]} 24. fxe5 {[%emt 0:00:08]} Bxe5 {[%emt 0:00:03]} 25. Nc5 {[%emt 0:00:06]} Rc8 {[%emt 0:00:20]} 26. Nd3 {[%emt 0:00:06]} Bc7 {[%emt 0:00:35]} 27. c3 {[%emt 0:00:01]} Bb6 {[%emt 0:00:04]} 28. cxd4 {[%emt 0:00:05]} Bxd4 {[%emt 0:00:10]} 29. Ra4 {[%emt 0:00:09]} Bb6 {[%emt 0:00:17]} 30. Ne5 {[%emt 0:00:09]} Rf8 {[%emt 0:00:15]} 31. Rd1 {[%emt 0:00:07]} Rf2 {[%emt 0:00:06]} 32. Nc6+ {[%emt 0:00:02]} Kf7 {[%emt 0:00:06]} 33. Nxa7 {[%emt 0:00:02]} Bxa7 {[%emt 0:00:02]} 34. h3 {[%emt 0:00:06]} Bb8 {[%emt 0:00:06]} 35. a7 {[%emt 0:00:02]} 1-0

[Event "Polish University-ch Teams 2024"]
[Site "Lublin"]
[Date "2024.02.24"]
[Round "1.12"]
[White "Moscicka, Pola"]
[Black "Hampel, Anna"]
[Result "1-0"]
[ECO "D06"]
[WhiteElo "1960"]
[BlackElo "1697"]
[Annotator "NA RC"]
[PlyCount "77"]
[EventDate "2024.02.22"]
[EventType "team-tourn"]
[EventCountry "POL"]
[SourceTitle "playchess.com"]
[Source "ChessBase"]
[SourceQuality "1"]
[TimeControl "900+5"]

1. d4 {[%emt 0:00:04]} Nf6 {[%emt 0:00:05]} 2. c4 {[%emt 0:00:01]} d5 {[%emt 0:00:04]} 3. cxd5 {[%emt 0:00:07]} Nxd5 {[%emt 0:00:06]} 4. Nc3 {[%emt 0:00:08]} Bf5 {[%emt 0:00:20]} 5. Nf3 {[%emt 0:01:05]} e6 {[%emt 0:00:34]} 6. e3 {[%emt 0:00:37]} Nd7 {[%emt 0:00:33]} 7. Be2 {[%emt 0:00:45]} Be7 {[%emt 0:00:22]} 8. O-O {[%emt 0:00:04]} O-O {[%emt 0:00:24]} 9. Qb3 {[%emt 0:01:12]} N7f6 {[%emt 0:01:11]} 10. Ne5 {[%emt 0:00:25]} c5 {[%emt 0:00:55]} 11. dxc5 {[%emt 0:03:28]} Bxc5 {[%emt 0:00:30]} 12. Rd1 {[%emt 0:00:06]} Qc7 {[%emt 0:01:05]} 13. Nd3 {[%emt 0:00:36]} Nxc3 {[%emt 0:01:58]} 14. bxc3 {[%emt 0:00:20]} Bd6 {[%emt 0:00:17]} 15. h3 {[%emt 0:00:11]} Nd5 {[%emt 0:00:36]} 16. Bb2 {[%emt 0:00:05]} Rac8 {[%emt 0:00:14]} 17. Rac1 {[%emt 0:00:06]} Rfd8 {[%emt 0:00:15]} 18. c4 {[%emt 0:00:34]} Nf6 {[%emt 0:00:29]} 19. Bf3 {[%emt 0:00:36]} b6 {[%emt 0:00:09]} 20. Qc3 {[%emt 0:00:15]} Bxd3 {[%emt 0:02:54]} 21. Rxd3 {[%emt 0:00:19]} e5 {[%emt 0:00:03]} 22. Rdd1 {[%emt 0:00:34]} Qe7 {[%emt 0:00:16]} 23. Qb3 {[%emt 0:00:51]} e4 {[%emt 0:00:42]} 24. Be2 {[%emt 0:00:01]} Nd7 {[%emt 0:00:22]} 25. Bg4 {[%emt 0:00:17]} Rc7 {[%emt 0:00:46]} 26. Bxd7 {[%emt 0:00:03]} Rcxd7 {[%emt 0:00:03]} 27. Qc3 {[%emt 0:00:34]} f6 {[%emt 0:00:05]} 28. Qb3 {[%emt 0:01:01]} Be5 {[%emt 0:00:14]} 29. Rxd7 {[%emt 0:00:28]} Rxd7 {[%emt 0:00:11]} 30. c5+ {[%emt 0:00:06]} Kh8 {[%emt 0:00:39]} 31. cxb6 {[%emt 0:00:03]} Bxb2 {[%emt 0:00:31]} 32. Qxb2 {[%emt 0:00:06]} Qd8 {[%emt 0:00:18]} 33. b7 {[%emt 0:00:34]} Rd1+ {[%emt 0:00:12]} 34. Rxd1 {[%emt 0:00:01]} Qxd1+ {[%emt 0:00:01]} 35. Kh2 {[%emt 0:00:01]} Qd6+ {[%emt 0:00:01]} 36. g3 {[%emt 0:00:02]} Qb8 {[%emt 0:00:01]} 37. Qd4 {[%emt 0:00:25]} h5 {[%emt 0:00:15]} 38. Qxe4 {[%emt 0:00:05]} g5 {[%emt 0:00:12]} 39. Qc6 {[%emt 0:00:11]} 1-0

[Event "Polish University-ch Teams 2024"]
[Site "Lublin"]
[Date "2024.02.24"]
[Round "1.13"]
[White "Kosakowski, Jakub"]
[Black "Fernandez Garcia, Gumersindo"]
[Result "1-0"]
[ECO "A11"]
[WhiteElo "2482"]
[BlackElo "2117"]
[Annotator "TA"]
[PlyCount "81"]
[EventDate "2024.02.22"]
[EventType "team-tourn"]
[EventCountry "POL"]
[SourceTitle "playchess.com"]
[Source "ChessBase"]
[SourceQuality "1"]
[TimeControl "900+5"]

{[%evp 11,81,0,0,0,0,0,23,24,32,47,56,46,53,37,60,56,59,0,35,35,49,61,55,43,34,12,27,-14,-10,-18,0,-8,-13,-10,-11,-3,-2,0,-13,-10,0,0,0,0,2,3,9,2,21,25,23,0,0,0,17,0,5,0,0,0,418,417,423,400,414,416,455,457,452,416,503,503]} 1. Nf3 {[%emt 0:00:22]} d5 {[%emt 0:00:08]} 2. e3 {[%emt 0:00:03]} Nf6 {[%emt 0:00:27]} 3. c4 {[%emt 0:00:03]} c6 {[%emt 0:00:02]} 4. Nc3 {[%emt 0:00:20]} e6 {[%emt 0:00:15]} 5. b3 {[%emt 0:00:08]} Bd6 {[%emt 0:00:19]} 6. Bb2 {[%emt 0:00:03]} Nbd7 {[%emt 0:00:04]} 7. Rc1 {[%emt 0:00:03]} Qe7 {[%emt 0:00:05]} 8. Be2 {[%emt 0:00:08]} dxc4 {[%emt 0:00:50]} 9. bxc4 {[%emt 0:00:09] White has an edge.} e5 {[%emt 0:00:04]} 10. d4 {[%emt 0:00:23]} exd4 {[%emt 0:00:43]} 11. exd4 {[%emt 0:00:07]} O-O {[%emt 0:00:06]} 12. O-O {[%emt 0:00:04]} Ba3 {[%emt 0:02:29]} 13. Bxa3 {[%emt 0:01:20]} Qxa3 {[%emt 0:00:02]} 14. c5 {[%emt 0:01:13]} (14. Qd2 $14) 14... Rd8 {[%emt 0:00:47]} 15. Nd2 {[%emt 0:01:09][%cal Bf3d2,Bd2c4,Bc4d6][%mdl 32]} Qa5 {[%emt 0:01:49]} 16. Nc4 {[%emt 0:00:07]} Qc7 {[%emt 0:00:02][%cal Od7c5]} 17. Nd6 {[%emt 0:00:10] And now Bc4 would win.} Nf8 {[%emt 0:00:42]} 18. Bc4 {[%emt 0:01:10]} Be6 {[%emt 0:00:12]} 19. Qb3 {[%emt 0:00:01][%cal Of1e1]} b6 {[%emt 0:00:56]} 20. Rfe1 {[%emt 0:00:02]} Rab8 {[%emt 0:00:52] White must now prevent ...bxc5.} 21. Bxe6 {[%emt 0:01:13]} Nxe6 {[%emt 0:00:04]} 22. Qc4 {[%emt 0:00:04] [#]} (22. Rxe6 {is interesting.} fxe6 23. Qxe6+ Kf8 24. Kf1) 22... Nxd4 $1 {[%emt 0:01:39]} 23. Qxd4 {[%emt 0:02:46] Qh4 would now be deadly.} bxc5 {[%emt 0:00:02]} 24. Qxc5 {[%emt 0:00:02]} Qxd6 {[%emt 0:00:09]} (24... Rxd6 $2 {is the wrong capture.} 25. Nb5 Rxb5 26. Qxb5 $18) 25. Qxa7 {[%emt 0:00:18]} Qd7 {[%emt 0:00:48]} 26. Qc5 {[%emt 0:00:22]} Qd6 {[%emt 0:00:11]} 27. Qf5 {[%emt 0:00:19]} Qd3 {[%emt 0:00:44]} 28. Qf4 {[%emt 0:01:00]} Qd2 {[%emt 0:00:15]} 29. Qf3 {[%emt 0:00:13][%cal Oc1d1]} c5 {[%emt 0:00:20]} 30. Rcd1 {[%emt 0:00:47]} Qc2 {[%emt 0:00:22]} 31. Rc1 {[%emt 0:01:36]} Qd3 {[%emt 0:00:35]} 32. Re3 {[%emt 0:00:37]} Qd2 {[%emt 0:00:07]} 33. Rce1 {[%emt 0:00:02]} h6 {[%emt 0:00:17]} 34. h4 {[%emt 0:00:30]} c4 {[%emt 0:00:05]} 35. Qf4 {[%emt 0:00:16][%cal Oe3e8] aiming for Re8+!} Qd4 $2 {[%emt 0:00:38][%mdl 8192] [#]} (35... Qd6 $11 36. Qxd6 (36. Qxc4 Rb4 $11) 36... Rxd6) 36. Re8+ $3 $18 {[%emt 0:00:03][%mdl 512]} Nxe8 {[%emt 0:00:04] [#]} 37. Rxe8+ $1 {[%emt 0:00:02][%mdl 512]} Kh7 {[%emt 0:00:37]} 38. Qxd4 {[%emt 0:00:08]} (38. Qxb8 $2 {perishes.} Rxb8 39. Rxb8 Qxc3 $19) 38... Rb1+ {[%emt 0:00:01]} 39. Nxb1 {[%emt 0:00:02]} Rxd4 {[%emt 0:00:02]} 40. Re1 {[%emt 0:00:11] Against Rd1} Rd3 {[%emt 0:00:11]} 41. Rc1 {[%emt 0:00:03] Weighted Error Value: White=0.07 (flawless) /Black=0.29 (precise) .  Loses game:     	---       	Black=1      Mistake:       	White=1     	---        Inaccurate:     	White=1     	Black=1      OK:         	White=13    	Black=12     Best:        	White=1     	Black=2      Brilliant:      	White=2     	---} 1-0

[Event "Polish University-ch Teams 2024"]
[Site "Lublin"]
[Date "2024.02.24"]
[Round "1.14"]
[White "Kopec, Norbert"]
[Black "Niedbala, Bartlomiej"]
[Result "0-1"]
[ECO "B04"]
[WhiteElo "1799"]
[BlackElo "2382"]
[Annotator "TA"]
[PlyCount "92"]
[EventDate "2024.02.22"]
[EventType "team-tourn"]
[EventCountry "POL"]
[SourceTitle "playchess.com"]
[Source "ChessBase"]
[SourceQuality "1"]
[TimeControl "900+5"]

{[%evp 15,92,38,18,10,11,10,12,7,34,20,25,-12,0,0,-13,-7,0,22,35,0,0,0,0,-17,0,0,0,0,29,38,26,6,0,0,6,0,40,0,0,0,0,-6,116,103,118,34,140,137,188,176,320,218,249,237,333,320,333,314,373,337,352,351,373,372,391,321,306,168,146,156,164,12,18,-251,-260,-5608,-5584,-29998,-29999]} 1. e4 {[%emt 0:00:02]} Nf6 {[%emt 0:01:24]} 2. e5 {[%emt 0:01:05]} Nd5 {[%emt 0:00:10]} 3. d4 {[%emt 0:00:03]} d6 {[%emt 0:00:01]} 4. exd6 {[%emt 0:00:02]} cxd6 {[%emt 0:00:01]} 5. Nf3 {[%emt 0:00:03]} g6 {[%emt 0:00:06]} 6. Bc4 {[%emt 0:00:22]} Nb6 {[%emt 0:00:01]} 7. Bb3 {[%emt 0:00:01]} Bg7 {[%emt 0:00:01]} 8. O-O {[%emt 0:00:11]} O-O {[%emt 0:00:02]} 9. Bg5 {[%emt 0:00:20]} Nc6 {[%emt 0:00:57]} 10. c3 {[%emt 0:00:08]} Qc7 {[%emt 0:01:09]} 11. Re1 {[%emt 0:00:38] The position is equal.} e5 {[%emt 0:00:20]} 12. Na3 {[%emt 0:01:40]} a6 {[%emt 0:00:13] Prevents Nb5} 13. Qd2 {[%emt 0:03:22]} Bg4 {[%emt 0:00:35]} 14. dxe5 {[%emt 0:02:18]} dxe5 {[%emt 0:00:21]} 15. Rad1 {[%emt 0:00:10]} Rfe8 {[%emt 0:01:22]} 16. Qd6 {[%emt 0:00:44]} Qc8 {[%emt 0:00:19]} (16... Qxd6 {simplifies} 17. Rxd6 Bf8 18. Rf6 Be6) 17. Rd2 {[%emt 0:01:25]} Bxf3 {[%emt 0:00:31]} 18. gxf3 {[%emt 0:00:02]} Qf5 {[%emt 0:00:15][%csl LRf3,LRg5]} 19. Be3 {[%emt 0:01:15] This pair of bishops is nice.} Rad8 {[%emt 0:03:12]} (19... e4 $5 20. f4 (20. Bxb6 Qg5+ 21. Qg3 Qxd2 $19) 20... Rad8 $15) 20. Qc7 {[%emt 0:00:02] [#] Threatens to win with Rxd8.} Rxd2 {[%emt 0:00:27]} 21. Bxd2 {[%emt 0:00:01]} Qd7 {[%emt 0:00:30]} 22. Qxd7 {[%emt 0:00:45]} Nxd7 {[%emt 0:00:01][%cal Bb6d7,Bd7c5,Bc5d3][%mdl 32]} 23. Nc4 {[%emt 0:00:06] Hoping for Nd6.} Nc5 {[%emt 0:00:25]} 24. Bc2 {[%emt 0:00:23]} b5 {[%emt 0:00:28]} 25. Be3 {[%emt 0:01:16]} Bf8 {[%emt 0:00:14] Repels Nd6} 26. Nd2 {[%emt 0:00:11]} Rd8 {[%emt 0:00:14]} 27. Ne4 {[%emt 0:00:03]} Nd3 {[%emt 0:00:22]} 28. Rb1 {[%emt 0:00:14]} f5 {[%emt 0:00:11] [#]} (28... Nf4 $11) 29. Ng5 $1 $16 {[%emt 0:00:20]} Rd7 {[%emt 0:01:33]} 30. b4 {[%emt 0:00:09] Wards off Nc5} ({Better is} 30. Bb3+ $16 Kh8 31. Nf7+ Kg7 32. Bh6+ Kf6 33. Bxf8 Rxf7 34. Bxf7 Kxf7 35. Ba3) 30... h6 {[%emt 0:00:26]} ({Black should play} 30... Nf4 $1 $14) 31. Ne6 {[%emt 0:00:08]} f4 {[%emt 0:00:35]} (31... Bg7 $16 32. Rd1 e4) 32. Bb6 $18 {[%emt 0:00:09] Bb3 is the strong threat.} e4 {[%emt 0:00:43]} (32... Be7 {was called for.} 33. Rd1 e4 34. fxe4 (34. Bb3 Kh7 $18) 34... Nce5) 33. fxe4 {[%emt 0:00:02] aiming for Bb3.} Nde5 {[%emt 0:00:41]} 34. Bb3 {[%emt 0:00:02]} Rd2 {[%emt 0:00:00]} (34... Nc4 {was necessary.} 35. Nxf4 N6e5) 35. Nxf4+ {[%emt 0:00:07]} Kh7 {[%emt 0:00:00]} 36. Be3 {[%emt 0:00:04]} Rd7 {[%emt 0:00:04]} 37. Ne6 {[%emt 0:00:02]} Be7 {[%emt 0:00:05]} 38. h3 {[%emt 0:00:04]} Nf3+ {[%emt 0:00:07]} 39. Kg2 {[%emt 0:00:01]} Nh4+ {[%emt 0:00:03]} 40. Kg3 {[%emt 0:00:03]} g5 {[%emt 0:00:01]} 41. Nd4 {[%emt 0:00:20]} (41. Rd1 $142 Rxd1 42. Bxd1 Bd6+ 43. f4) 41... Bd6+ {[%emt 0:00:03]} 42. f4 {[%emt 0:00:04]} Nxd4 {[%emt 0:00:12]} 43. cxd4 $2 {[%emt 0:00:02]} (43. Bxd4 $18 {And now e5 would win.} Bxf4+ 44. Kf2) 43... gxf4+ $11 {[%emt 0:00:02]} 44. Bxf4 $2 {[%emt 0:00:01][%mdl 8192]} (44. Kxh4 $11 fxe3 45. Kg4 Bxb4 46. Kf3 Rxd4 47. Kxe3) 44... Rg7+ $19 {[%emt 0:00:02]} 45. Kxh4 $2 {[%emt 0:00:03]} (45. Kf2 Bxf4 46. Ke2 Rg2+ 47. Kd3) 45... Bxf4 {[%emt 0:00:01]} 46. Be6 {[%emt 0:00:13]} Bg3+ {[%emt 0:00:00] Weighted Error Value: White=0.55/Black=0.24 (precise) .  Loses game:     	White=1     	---        Mistake:       	White=4     	Black=5      Inaccurate:     	White=5     	Black=4      OK:         	White=18    	Black=10     Best:        	White=2     	Black=5} 0-1

[Event "Polish University-ch Teams 2024"]
[Site "Lublin"]
[Date "2024.02.24"]
[Round "1.15"]
[White "Hasterok, Mateusz"]
[Black "Wolpiuk, Bartlomiej"]
[Result "1-0"]
[ECO "D00"]
[WhiteElo "2150"]
[BlackElo "1319"]
[Annotator "RC"]
[PlyCount "57"]
[EventDate "2024.02.22"]
[EventType "team-tourn"]
[EventCountry "POL"]
[SourceTitle "playchess.com"]
[Source "ChessBase"]
[SourceQuality "1"]
[TimeControl "900+5"]

1. d4 {[%emt 0:00:01]} Nf6 {[%emt 0:00:02]} 2. Bg5 {[%emt 0:00:02]} d5 {[%emt 0:00:13]} 3. Nd2 {[%emt 0:00:02]} e6 {[%emt 0:00:08]} 4. e3 {[%emt 0:00:01]} Be7 {[%emt 0:00:05]} 5. Bd3 {[%emt 0:00:05]} O-O {[%emt 0:00:14]} 6. f4 {[%emt 0:00:05]} b6 {[%emt 0:00:31]} 7. Qe2 {[%emt 0:00:10]} c5 {[%emt 0:00:18]} 8. c3 {[%emt 0:00:01]} Nc6 {[%emt 0:00:26]} 9. Ngf3 {[%emt 0:00:04]} Bb7 {[%emt 0:01:26]} 10. O-O {[%emt 0:00:08]} Rc8 {[%emt 0:00:04]} 11. h3 {[%emt 0:00:06]} h6 {[%emt 0:00:06]} 12. Bh4 {[%emt 0:00:02]} Nb8 {[%emt 0:00:31]} 13. Ne5 {[%emt 0:00:15]} Ne4 {[%emt 0:00:46]} 14. Bxe7 {[%emt 0:00:05]} Qxe7 {[%emt 0:00:01]} 15. Bxe4 {[%emt 0:00:02]} dxe4 {[%emt 0:00:02]} 16. dxc5 {[%emt 0:00:22]} Rxc5 {[%emt 0:00:57]} 17. Rfd1 {[%emt 0:00:25]} Rd8 {[%emt 0:00:11]} 18. Nb3 {[%emt 0:00:11]} Rcc8 {[%emt 0:00:03]} 19. Nd4 {[%emt 0:00:08]} a6 {[%emt 0:01:01]} 20. Rd2 {[%emt 0:01:23]} Nd7 {[%emt 0:00:07]} 21. Nxd7 {[%emt 0:00:11]} Rxd7 {[%emt 0:00:02]} 22. Rad1 {[%emt 0:00:06]} Rcd8 {[%emt 0:00:02]} 23. Qg4 {[%emt 0:02:30]} Kh7 {[%emt 0:01:21]} 24. h4 {[%emt 0:00:42]} Qc5 {[%emt 0:02:59]} 25. Nxe6 {[%emt 0:01:36]} Qxe3+ {[%emt 0:00:19]} 26. Kh2 {[%emt 0:00:01]} f5 {[%emt 0:00:02]} 27. Rxd7 {[%emt 0:00:05]} fxg4 {[%emt 0:00:16]} 28. Rxg7+ {[%emt 0:00:02]} Kh8 {[%emt 0:00:07]} 29. Rxd8# {[%emt 0:00:08]} 1-0

[Event "Polish University-ch Teams 2024"]
[Site "Lublin"]
[Date "2024.02.24"]
[Round "1.16"]
[White "Hapunik, Jakub"]
[Black "Brozyna, Mateusz"]
[Result "0-1"]
[ECO "D02"]
[WhiteElo "1322"]
[BlackElo "2259"]
[Annotator "TA"]
[PlyCount "74"]
[EventDate "2024.02.22"]
[EventType "team-tourn"]
[EventCountry "POL"]
[SourceTitle "playchess.com"]
[Source "ChessBase"]
[SourceQuality "1"]
[TimeControl "900+5"]

{[%evp 12,74,0,-29,0,-7,-8,-8,0,0,11,-12,4,-17,-31,-30,0,0,0,-14,0,0,0,-59,-7,-53,0,-91,-89,-93,-72,-66,-91,-80,-79,-203,-210,-202,-207,-220,-212,-186,-211,-210,-202,-247,-207,-526,-541,-1459,-1467,-1327,-1273,-2484,-1079,-1882,-1904,-29989,-29990,-29990,-29991,-29993,-29994,-29997,-29998]} 1. d4 {[%emt 0:00:02]} d5 {[%emt 0:00:01]} 2. Bf4 {[%emt 0:00:02]} Nf6 {[%emt 0:00:06]} 3. Nf3 {[%emt 0:00:02]} c5 {[%emt 0:00:02]} 4. c3 {[%emt 0:00:07]} Nc6 {[%emt 0:00:03]} 5. e3 {[%emt 0:00:02]} Qb6 {[%emt 0:00:38]} 6. Qb3 {[%emt 0:00:53]} c4 {[%emt 0:00:02]} 7. Qc2 {[%emt 0:00:46]} g6 {[%emt 0:00:03]} (7... Bf5 $5 8. Qc1 (8. Qxf5 $2 {ist das falsche Schlagen.} Qxb2 9. Nfd2 e6 $19) 8... Nh5 $15) 8. Nbd2 {[%emt 0:00:39]} Bf5 {[%emt 0:00:03]} 9. Qc1 {[%emt 0:00:14]} Bg7 {[%emt 0:00:03] Die Stellung ist ausgeglichen.} 10. h3 {[%emt 0:00:25]} O-O {[%emt 0:00:12]} 11. Be2 {[%emt 0:00:57]} a5 {[%emt 0:01:44]} 12. O-O {[%emt 0:02:06]} a4 {[%emt 0:00:06]} 13. Ne5 {[%emt 0:01:42]} Ne4 {[%emt 0:00:54]} (13... Nxe5 {vereinfacht} 14. Bxe5 h5 15. Bf4 Rfc8) 14. Nxe4 {[%emt 0:00:55] [#] Und Ng3 würde nun gewinnen.} Nxe5 {[%emt 0:00:09]} 15. Bxe5 {[%emt 0:02:13] Droht stark Ng3.} Bxe5 {[%emt 0:00:52]} 16. dxe5 {[%emt 0:00:17]} Bxe4 {[%emt 0:00:04]} 17. f3 {[%emt 0:00:16]} (17. a3 $1 $11) 17... Bf5 {[%emt 0:00:22]} (17... a3 $1 $15 18. bxa3 Bf5) 18. g4 {[%emt 0:00:07]} (18. a3 $1 $11 {ist eher angebracht.}) 18... Bd7 {[%emt 0:00:07]} (18... a3 $1 $15 19. bxa3 Bd7 (19... Bd3 20. Bxd3 cxd3 21. Rd1 $15)) 19. Rd1 {[%emt 0:01:28] [#]} (19. a3 $11 {bleibt in der Remisbreite.}) 19... a3 $1 {[%emt 0:00:39]} 20. Rb1 {[%emt 0:00:19]} Qc5 $36 {[%emt 0:00:08][%mdl 2048] Schwarz ist am Drücker. Schwarz steht aktiver.} 21. Kf2 {[%emt 0:00:45]} f6 {[%emt 0:00:27]} 22. exf6 {[%emt 0:00:31]} Rxf6 {[%emt 0:00:15]} 23. Rd4 {[%emt 0:00:53] Danach ist Weiß chancenlos.} (23. b4 $17 Qd6 24. f4) 23... e5 $19 {[%emt 0:00:11]} 24. Rd1 {[%emt 0:00:15]} Bc6 {[%emt 0:00:28]} 25. Kg3 {[%emt 0:00:14]} axb2 {[%emt 0:02:07]} 26. Rxb2 {[%emt 0:00:04]} Raf8 {[%emt 0:00:17][%cal Od5d4] Droht ...d4! und aus.} 27. Rf1 {[%emt 0:00:51]} b5 {[%emt 0:00:33]} 28. Qd2 {[%emt 0:00:08]} Qd6 {[%emt 0:00:40] ...d4 ist eine echte Drohung.} 29. Qd1 {[%emt 0:00:09]} (29. Kg2) 29... d4 {[%emt 0:00:14]} 30. exd4 {[%emt 0:00:07]} exd4+ {[%emt 0:00:07]} 31. Kg2 {[%emt 0:00:03]} d3 {[%emt 0:00:08]} 32. Re1 {[%emt 0:00:06]} Qf4 {[%emt 0:00:17]} (32... Qa3 $142 33. Rxb5 Qxc3 (33... Bxb5 $2 34. g5 $19)) 33. Rf1 {[%emt 0:00:06]} dxe2 {[%emt 0:00:08]} 34. Rxe2 {[%emt 0:00:05]} Bxf3+ {[%emt 0:00:04] Schwarz setzt Matt.} 35. Rxf3 {[%emt 0:00:02]} Qxf3+ {[%emt 0:00:02]} 36. Kg1 {[%emt 0:00:02]} Re6 {[%emt 0:00:13]} 37. Qe1 {[%emt 0:00:10]} Rxe2 {[%emt 0:00:03] Gewichteter Fehlerwert: Weiß=1.09/Schwarz=0.37.  Fehler:       	Weiß=5     	Schwarz=2     Ungenau:       	Weiß=1     	Schwarz=1     OK:         	Weiß=5     	Schwarz=8     Bester:       	Weiß=1     	Schwarz=2} 0-1

[Event "Polish University-ch Teams 2024"]
[Site "Lublin"]
[Date "2024.02.24"]
[Round "1.17"]
[White "Hadrian, Patryk"]
[Black "Lipka, Michal"]
[Result "1-0"]
[ECO "D00"]
[WhiteElo "1658"]
[BlackElo "1389"]
[Annotator "NA RC"]
[PlyCount "110"]
[EventDate "2024.02.22"]
[EventType "team-tourn"]
[EventCountry "POL"]
[SourceTitle "playchess.com"]
[Source "ChessBase"]
[SourceQuality "1"]
[TimeControl "900+5"]

1. d4 {[%emt 0:00:03]} d5 {[%emt 0:00:02]} 2. Nc3 {[%emt 0:00:02]} Nf6 {[%emt 0:00:14]} 3. Bf4 {[%emt 0:00:03]} a6 {[%emt 0:00:09]} 4. e3 {[%emt 0:00:03]} e6 {[%emt 0:00:06]} 5. g4 {[%emt 0:00:20]} h6 {[%emt 0:01:04]} 6. h4 {[%emt 0:01:03]} Bd6 {[%emt 0:00:41]} 7. Qf3 {[%emt 0:01:33]} Bxf4 {[%emt 0:01:39]} 8. Qxf4 {[%emt 0:00:25]} Qd6 {[%emt 0:00:02]} 9. Qf3 {[%emt 0:01:38]} Qb4 {[%emt 0:02:34]} 10. O-O-O {[%emt 0:01:12]} c5 {[%emt 0:01:19]} 11. g5 {[%emt 0:01:21]} hxg5 {[%emt 0:00:19]} 12. hxg5 {[%emt 0:00:13]} Rxh1 {[%emt 0:00:02]} 13. Qxh1 {[%emt 0:00:10]} Ng8 {[%emt 0:00:24]} 14. Qh8 {[%emt 0:01:21]} Kf8 {[%emt 0:00:04]} 15. Bd3 {[%emt 0:01:06]} g6 {[%emt 0:00:02]} 16. dxc5 {[%emt 0:00:37]} Qg4 {[%emt 0:02:32]} 17. f4 {[%emt 0:01:40]} Nc6 {[%emt 0:00:03]} 18. Be2 {[%emt 0:00:33]} Qg3 {[%emt 0:00:27]} 19. Nf3 {[%emt 0:00:16]} Bd7 {[%emt 0:01:41]} 20. Qh1 {[%emt 0:01:34]} Qf2 {[%emt 0:00:43]} 21. Qg1 {[%emt 0:01:03]} Qxg1 {[%emt 0:00:24]} 22. Rxg1 {[%emt 0:00:02]} Nge7 {[%emt 0:00:33]} 23. Nd4 {[%emt 0:00:09]} Kg7 {[%emt 0:00:19]} 24. Bd3 {[%emt 0:00:07]} Rh8 {[%emt 0:00:14]} 25. a3 {[%emt 0:00:04]} Rh3 {[%emt 0:00:02]} 26. Kd2 {[%emt 0:00:08]} Nxd4 {[%emt 0:00:10]} 27. exd4 {[%emt 0:00:03]} Nc6 {[%emt 0:00:03]} 28. Ne2 {[%emt 0:00:04]} Rh2 {[%emt 0:00:18]} 29. c3 {[%emt 0:00:11]} a5 {[%emt 0:00:15]} 30. Bb5 {[%emt 0:00:11]} Kf8 {[%emt 0:00:08]} 31. Bxc6 {[%emt 0:00:03]} Bxc6 {[%emt 0:00:03]} 32. Re1 {[%emt 0:00:04]} a4 {[%emt 0:00:12]} 33. Kc2 {[%emt 0:00:10]} Bb5 {[%emt 0:00:02]} 34. Kd1 {[%emt 0:00:02]} Ke7 {[%emt 0:00:12]} 35. Kd2 {[%emt 0:00:09]} Rg2 {[%emt 0:00:24]} 36. Ke3 {[%emt 0:00:08]} f6 {[%emt 0:00:12]} 37. gxf6+ {[%emt 0:00:04]} Kxf6 {[%emt 0:00:01]} 38. Kf3 {[%emt 0:00:20]} Rh2 {[%emt 0:00:06]} 39. Ke3 {[%emt 0:00:00]} Kf5 {[%emt 0:00:10]} 40. Ng3+ {[%emt 0:00:01]} Kf6 {[%emt 0:00:19]} 41. Rb1 {[%emt 0:00:06]} Rh3 {[%emt 0:00:02]} 42. Kf2 {[%emt 0:00:02]} Rh2+ {[%emt 0:00:06]} 43. Kf3 {[%emt 0:00:07]} Bd3 {[%emt 0:00:04]} 44. Re1 {[%emt 0:00:06]} Rxb2 {[%emt 0:00:08]} 45. Ke3 {[%emt 0:00:03]} Bf5 {[%emt 0:00:16]} 46. Ra1 {[%emt 0:00:05]} Rc2 {[%emt 0:00:00]} 47. Ne2 {[%emt 0:00:04]} g5 {[%emt 0:00:00]} 48. fxg5+ {[%emt 0:00:16]} Kxg5 {[%emt 0:00:03]} 49. Rg1+ {[%emt 0:00:00]} Bg4 {[%emt 0:00:11]} 50. Rg2 {[%emt 0:00:04]} Ra2 {[%emt 0:00:11]} 51. Rf2 {[%emt 0:00:05]} Rxa3 {[%emt 0:00:05]} 52. Kd2 {[%emt 0:00:05]} Rb3 {[%emt 0:00:05]} 53. Nc1 {[%emt 0:00:05]} Rb2+ {[%emt 0:00:05]} 54. Ke3 {[%emt 0:00:05]} Rxf2 55. Kxf2 {[%emt 0:00:11]} Kf4 {[%emt 0:00:10]} 1-0